bitfinex/quotes_ETHUSD_20241216
["timestamp","ask_amount","ask_price","bid_price","bid_amount"]
[1734332094968,8.42e-06,3950.6,3950.5,8.95376788]
[1734332095473,0.0949,3952.8,3952.3,2.53016]
[1734332096203,0.0949,3952.8,3951.8,2.53049]
[1734332096503,0.0949,3952.8,3952.0,3.0]
[1734332096706,0.0949,3952.8,3951.9,3.0]
[1734332096864,0.0949,3952.8,3952.3,2.53015]
[1734332098361,0.0949,3952.8,3951.9,3.0]
[1734332098558,0.0949,3952.8,3952.1,2.53027]
[1734332099006,0.0949,3952.8,3951.9,3.0]
[1734332099158,0.0949,3952.8,3952.2,2.53023]
[1734332099362,0.0949,3952.8,3951.9,3.0]
[1734332101059,0.0949,3952.8,3952.3,2.53016]
[1734332102271,0.0949,3952.8,3951.8,3.0]
[1734332102475,0.0949,3952.8,3952.0,2.53035]
[1734332102806,0.0949,3952.8,3952.1,2.53029]
[1734332104003,0.0949,3952.8,3952.1,2.52425032]
[1734332104774,0.0949,3952.8,3952.1,2.15494582]
[1734332105158,0.50098345,3953.3,3952.1,2.15494582]
[1734332105159,0.6449,3953.1,3952.4,2.53009]
[1734332105314,3.07967,3953.1,3951.9,3.34426]
[1734332105610,3.07967,3953.1,3952.0,3.0]
[1734332105611,0.0949,3952.9,3952.0,3.0]
[1734332105970,0.0949,3952.9,3952.0,2.53035]
[1734332107997,0.0949,3952.9,3952.1,0.99481866]
[1734332108521,0.0949,3952.9,3952.1,3.52507866]
[1734332111320,0.0949,3952.9,3952.2,2.53022]
[1734332114511,0.0949,3952.9,3952.1,0.99481866]
[1734332114874,0.0949,3952.9,3952.2,0.8112]
[1734332115071,0.0949,3952.9,3952.3,0.99481866]
[1734332115271,0.0949,3952.9,3952.3,3.52497866]
[1734332117597,0.0949,3952.9,3952.3,0.99481866]
[1734332117798,0.0949,3952.9,3952.2,2.53022]
[1734332118004,0.0949,3952.9,3951.9,2.53036]
[1734332118171,0.317464,3952.8,3952.0,2.53036]
[1734332118373,0.0949,3952.7,3952.0,2.53036]
[1734332119585,0.0949,3952.7,3951.9,2.53042]
[1734332119778,0.0949,3952.7,3952.0,5.53035]
[1734332121033,0.0949,3952.5,3951.5,2.53062]
[1734332121177,0.0949,3952.1,3950.9,1.79981866]
[1734332121371,0.99481866,3952.3,3950.6,0.805]
[1734332121372,0.0949,3951.9,3950.6,0.805]
[1734332121584,0.0949,3951.7,3950.9,2.53104]
[1734332122329,0.0949,3951.7,3951.2,2.53085]
[1734332122473,0.0949,3951.7,3951.0,0.99481866]
[1734332122819,0.0949,3951.7,3951.2,2.53082]
[1734332123372,0.0949,3951.7,3951.0,3.52581866]
[1734332124077,0.0949,3951.7,3951.0,0.99481866]
[1734332124913,0.55,3951.6,3950.9,3.0]
[1734332128310,0.55,3951.6,3950.9,2.53105]
[1734332129716,0.55,3951.6,3950.8,0.99481866]
[1734332129961,0.55,3951.6,3950.8,3.99481866]
[1734332130249,0.55,3951.6,3950.2,4.64485041]
[1734332130250,0.0949,3951.5,3950.5,6.5880152]
[1734332130453,0.0949,3951.3,3950.5,2.53132]
[1734332131325,0.0949,3951.3,3950.3,0.99481866]
[1734332131526,0.0949,3951.3,3950.3,3.52619866]
[1734332131727,0.55,3951.2,3950.3,2.53138]
[1734332131915,0.0949,3951.1,3950.3,2.53138]
[1734332132550,0.0949,3951.1,3950.0,2.87581386]
[1734332132860,0.0949,3951.1,3950.1,2.53157]
[1734332133065,0.0949,3950.9,3949.9,4.58321386]
[1734332133364,0.0949,3950.7,3949.9,0.99481866]
[1734332133656,0.55,3950.6,3949.9,0.99481866]
[1734332134557,0.55,3950.4,3949.7,1.0566952]
[1734332134766,0.55,3950.2,3949.6,1.0566952]
[1734332135061,0.55,3950.2,3949.4,2.53202]
[1734332135912,0.5408636,3950.2,3949.4,2.53202]
[1734332136170,0.5408636,3950.2,3949.5,2.53196]
[1734332136326,0.0949,3950.1,3949.1,1.0566952]
[1734332136669,0.0949,3950.1,3949.3,3.0]
[1734332136819,0.0949,3950.1,3949.4,3.0]
[1734332137156,0.0949,3950.1,3949.0,4.0566952]
[1734332137667,0.0949,3950.1,3949.1,2.53222]
[1734332137861,0.0949,3950.1,3949.3,3.0]
[1734332138154,0.55,3950.0,3949.5,2.53192]
[1734332138314,0.55,3950.0,3949.3,3.0]
[1734332138513,0.55,3950.0,3949.6,2.5319]
[1734332139838,0.0949,3950.1,3949.4,3.0]
[1734332140034,0.6449,3950.9,3949.9,2.5317]
[1734332140538,0.8049,3950.9,3949.9,2.5317]
[1734332140958,0.0949,3950.8,3949.9,2.5317]
[1734332141158,0.55,3950.5,3949.5,2.53196]
[1734332141380,1.0930108,3950.9,3949.0,3.8022]
[1734332141381,0.55,3950.2,3949.0,3.8022]
[1734332141563,0.0949,3950.1,3949.3,3.0]
[1734332141769,0.55,3950.2,3948.7,0.8022]
[1734332141770,0.55,3950.0,3949.1,2.53221]
[1734332142086,0.55,3949.8,3949.2,3.0]
[1734332142448,0.55,3949.8,3948.7,0.8022]
[1734332142634,0.55,3949.8,3949.2,3.0]
[1734332142973,0.55,3949.8,3949.3,2.53207]
[1734332143739,0.55,3949.8,3948.8,3.0]
[1734332143935,0.0949,3949.9,3949.6,2.53189]
[1734332145533,0.55,3950.3,3949.7,2.53177]
[1734332146993,0.55,3950.3,3949.9,2.53168]
[1734332147385,0.0949,3950.4,3949.7,2.15851355]
[1734332147570,0.0949,3950.4,3949.8,0.7902]
[1734332147773,0.0949,3950.4,3950.0,2.53158]
[1734332148696,0.0949,3950.4,3949.8,0.7902]
[1734332148885,0.0949,3950.4,3950.1,2.53152]
[1734332150403,0.0949,3950.4,3949.8,0.7902]
[1734332150404,0.0949,3950.9,3949.9,2.5317]
[1734332150605,0.0949,3950.9,3950.5,2.53131]
[1734332150909,0.0949,3950.9,3950.1,3.0]
[1734332151256,0.0949,3950.9,3950.3,2.53144]
[1734332153093,0.0949,3950.9,3950.1,2.15851355]
[1734332153298,0.0949,3950.9,3950.8,2.53113]
[1734332153460,0.0949,3951.2,3950.9,2.53106]
[1734332155566,0.0949,3951.2,3950.5,2.15851355]
[1734332155763,0.6449,3951.8,3950.6,0.7587]
[1734332155968,0.0949,3951.8,3951.0,2.531]
[1734332156274,0.0949,3951.8,3951.2,2.53086]
[1734332156470,0.0949,3951.8,3951.3,2.53079]
[1734332156670,0.0949,3951.8,3950.9,2.15851355]
[1734332156870,0.0949,3951.8,3951.3,2.53074]
[1734332157509,0.0949,3951.8,3951.4,2.53072]
[1734332157997,0.0949,3951.8,3951.4,2.53068]
[1734332158206,0.0949,3951.8,3951.6,2.5306]
[1734332160013,0.0949,3951.8,3951.4,2.53073]
[1734332160165,0.0949,3951.8,3951.2,2.53084]
[1734332162676,0.0949,3951.8,3951.3,2.53078]
[1734332164116,0.0949,3951.8,3951.3,2.52490766]
[1734332165450,0.0949,3951.8,3951.1,2.53094]
[1734332165917,0.0949,3951.8,3950.9,5.15851355]
[1734332166068,0.0949,3951.8,3951.2,2.53086]
[1734332167390,0.0949,3951.8,3951.2,2.53087]
[1734332167677,0.0949,3951.8,3951.3,2.53076]
[1734332168511,0.0949,3951.8,3951.6,2.5306]
[1734332169524,0.0949,3951.8,3951.4,0.99531979]
[1734332169828,0.0949,3951.8,3951.1,0.99531979]
[1734332170323,0.0949,3951.8,3951.2,2.53086]
[1734332170528,0.0949,3951.8,3951.1,0.99531979]
[1734332170700,0.0949,3951.8,3951.3,2.53077]
[1734332172598,0.0949,3951.8,3951.4,0.99531979]
[1734332174184,0.0949,3951.8,3951.4,3.52605979]
[1734332174430,0.0949,3951.8,3951.5,2.53066]
[1734332174631,0.0949,3952.7,3951.7,2.53055]
[1734332174786,0.2549,3952.7,3951.7,0.99531979]
[1734332175103,0.2549,3952.7,3951.9,2.53041]
[1734332176202,1.09021979,3952.5,3951.0,1.0566952]
[1734332176538,0.0949,3951.8,3950.9,3.99531979]
[1734332176835,0.55,3951.7,3951.0,3.0]
[1734332177741,0.55,3951.8,3951.0,3.0]
[1734332177922,0.55,3951.6,3951.0,3.0]
[1734332179103,0.55,3951.4,3950.7,3.0]
[1734332179309,0.55,3951.4,3950.7,3.96258098]
[1734332181526,0.55,3951.4,3950.7,2.96726119]
[1734332181740,0.55,3951.4,3950.7,3.96258098]
[1734332182537,0.0949,3951.3,3950.7,0.99531979]
[1734332183633,0.0949,3951.3,3950.2,1.0566952]
[1734332183634,0.0949,3951.3,3950.0,1.8475952]
[1734332183838,0.0949,3951.1,3950.3,0.99531979]
[1734332184063,0.55,3951.0,3950.3,0.99531979]
[1734332184267,0.0949,3950.9,3950.3,0.99531979]
[1734332185572,0.55,3950.8,3949.9,0.99531979]
[1734332185787,0.55,3950.6,3949.9,0.99531979]
[1734332186071,0.0949,3950.5,3949.9,0.99531979]
[1734332187267,0.0949,3950.5,3949.6,5.05201499]
[1734332187564,0.55,3950.4,3949.6,3.99531979]
[1734332187842,0.55,3950.4,3949.6,0.99531979]
[1734332188298,0.55,3950.4,3949.8,0.99531979]
[1734332191956,0.0949,3950.5,3949.6,2.53188]
[1734332191957,0.0949,3950.5,3950.0,0.99531979]
[1734332193174,0.0949,3950.5,3949.7,0.99531979]
[1734332193708,0.55,3950.4,3949.7,0.99531979]
[1734332194997,0.55,3950.4,3949.4,3.99531979]
[1734332194998,0.0949,3950.3,3949.4,3.99531979]
[1734332195201,0.0949,3950.3,3949.4,0.99531979]
[1734332195586,0.55,3950.2,3949.4,0.99531979]
[1734332196984,0.55,3950.2,3949.4,3.52732979]
[1734332197703,0.55,3950.2,3949.5,2.53194]
[1734332198880,0.55,3950.2,3949.4,0.99531979]
[1734332198881,0.55,3950.2,3949.6,2.53188]
[1734332200605,0.55,3950.2,3949.7,0.99531979]
[1734332200978,0.55,3950.2,3949.8,2.53177]
[1734332201281,0.0949,3950.3,3949.7,0.99531979]
[1734332201504,0.0949,3950.3,3949.9,2.53168]
[1734332202035,0.0949,3950.3,3949.7,0.99531979]
[1734332202181,0.0949,3950.3,3949.7,3.52713979]
[1734332202381,0.55,3950.2,3949.7,2.53182]
[1734332202693,0.55,3950.2,3949.5,0.99531979]
[1734332202938,0.55,3950.2,3949.5,3.99531979]
[1734332203874,0.55,3950.2,3949.5,3.52726979]
[1734332207637,0.55,3950.2,3949.6,2.53188]
[1734332207978,0.0949,3950.3,3949.8,3.52707979]
[1734332209568,0.0949,3950.3,3949.9,2.53168]
[1734332210082,0.0949,3950.3,3949.8,0.99531979]
[1734332213488,0.0949,3950.3,3949.8,3.52707979]
[1734332214844,0.0949,3950.3,3949.9,2.53169]
[1734332215091,0.6449,3950.6,3950.1,0.99531979]
[1734332215293,0.0949,3950.6,3950.1,3.52688979]
[1734332216998,0.0949,3950.6,3950.1,0.99531979]
[1734332217296,0.0949,3950.6,3949.4,1.58504281]
[1734332217297,2.53135,3950.5,3949.4,3.52733979]
[1734332217592,2.53135,3950.5,3949.5,3.0]
[1734332217593,0.45428474,3950.4,3949.5,3.0]
[1734332218037,0.45428474,3950.4,3949.4,0.99531979]
[1734332218174,0.0949,3950.4,3949.6,2.5319]
[1734332220508,0.0949,3950.4,3949.4,0.99531979]
[1734332220680,0.0949,3950.4,3949.5,3.0]
[1734332221095,0.0949,3950.4,3949.5,3.99531979]
[1734332221306,0.333622,3950.3,3949.5,3.99531979]
[1734332223494,2.5316,3950.1,3949.4,1.0566952]
[1734332223679,0.0949,3950.0,3949.2,1.0566952]
[1734332223884,0.0949,3949.9,3949.0,1.0566952]
[1734332224228,2.53173,3949.9,3948.8,1.0566952]
[1734332224398,0.0949,3949.7,3948.8,1.0566952]
[1734332224597,0.0949,3949.5,3948.7,1.0566952]
[1734332224829,0.55,3949.2,3948.6,0.39513693]
[1734332224995,0.0949,3949.1,3948.3,1.0566952]
[1734332225179,0.0949,3949.1,3948.2,1.0566952]
[1734332225787,0.357601,3949.1,3948.2,1.0566952]
[1734332226096,0.0949,3949.0,3948.1,3.5895452]
[1734332226293,2.62719,3949.0,3948.1,1.0566952]
[1734332226586,2.62719,3949.0,3947.9,1.0566952]
[1734332226790,0.2889891,3948.9,3947.9,1.0566952]
[1734332226990,0.0949,3948.8,3947.9,1.0566952]
[1734332227190,0.0949,3948.8,3948.0,2.53292]
[1734332227887,0.0949,3948.8,3948.1,2.53285]
[1734332229105,0.0949,3948.8,3948.2,2.53279]
[1734332229329,0.0949,3948.8,3947.8,4.0566952]
[1734332229495,0.0949,3948.8,3948.3,2.53268]
[1734332229885,0.0949,3948.8,3947.8,3.0]
[1734332229886,0.0949,3948.8,3948.0,2.53287]
[1734332230234,0.0949,3948.8,3948.1,2.53285]
[1734332231222,0.0949,3948.8,3948.2,2.53279]
[1734332232744,0.0949,3948.8,3947.8,3.0]
[1734332233040,0.0949,3948.8,3948.3,2.53269]
[1734332233255,0.0949,3948.8,3947.9,2.53299]
[1734332233425,0.0949,3948.8,3948.4,2.53266]
[1734332233954,0.0949,3948.8,3947.8,4.0566952]
[1734332234258,0.0949,3948.8,3948.5,2.53257]
[1734332234812,0.0949,3948.8,3948.3,2.53273]
[1734332235262,0.0949,3948.8,3948.4,2.53266]
[1734332235817,0.0949,3948.8,3947.8,4.0566952]
[1734332236167,0.0949,3948.8,3948.6,2.53253]
[1734332236458,0.0949,3948.8,3948.3,2.5327]
[1734332237429,2.53202,3949.5,3947.8,2.533]
[1734332237430,0.0949,3948.6,3947.8,2.533]
[1734332237663,0.55,3948.5,3947.8,2.533]
[1734332238251,0.55,3948.6,3947.8,2.533]
[1734332238566,0.0949,3948.5,3947.8,2.533]
[1734332239643,0.0949,3948.5,3947.9,2.53298]
[1734332239859,0.0949,3948.5,3947.3,3.97203717]
[1734332240060,0.0949,3948.5,3947.4,1.34040424]
[1734332240275,0.0949,3948.5,3948.2,2.53277]
[1734332241453,0.0949,3948.5,3948.0,2.53292]
[1734332241865,0.0949,3948.5,3948.1,2.53285]
[1734332242067,0.55,3948.4,3947.4,3.0]
[1734332242380,0.0949,3948.3,3947.7,2.53309]
[1734332244395,0.0949,3948.3,3947.5,2.53324]
[1734332244609,0.55,3948.4,3947.2,3.75889461]
[1734332244610,0.55,3948.1,3947.3,2.53337]
[1734332244757,0.0949,3948.0,3947.3,2.53337]
[1734332245695,0.0949,3947.8,3946.9,2.67375658]
[1734332245904,0.0949,3947.8,3947.1,2.53349]
[1734332246066,0.0949,3947.8,3947.2,2.53342]
[1734332246451,0.0949,3947.8,3947.3,2.53337]
[1734332247272,0.16,3948.3,3947.7,0.99730887]
[1734332248140,0.16,3948.3,3947.8,2.53304]
[1734332248664,0.55,3948.4,3947.8,2.53304]
[1734332248902,0.55,3948.4,3947.4,0.8316]
[1734332249105,0.55,3948.4,3947.9,2.53296]
[1734332250005,0.55,3948.4,3947.4,3.36486]
[1734332250906,0.55,3948.4,3947.8,2.53304]
[1734332251460,0.55,3948.4,3947.6,2.53317]
[1734332251774,0.0949,3948.3,3947.6,2.53317]
[1734332252209,0.0949,3948.3,3947.4,0.8316]
[1734332252415,0.55,3948.9,3948.8,49.1951]
[1734332253431,3.08235,3948.9,3948.8,48.14016812]
[1734332254612,0.55,3948.9,3948.8,48.14016812]
[1734332254813,2.16026496,3949.5,3948.8,48.14016812]
[1734332255017,2.53191,3949.6,3948.8,48.14016812]
[1734332255506,0.253173,3949.8,3948.8,48.14016812]
[1734332255686,2.53215,3949.2,3948.8,48.14016812]
[1734332255884,2.53228,3949.1,3948.8,48.14016812]
[1734332256085,2.53235,3948.9,3948.8,48.14016812]
[1734332256318,3.38585078,3948.9,3948.8,48.14016812]
[1734332256629,0.85350078,3948.9,3948.8,48.14016812]
[1734332257205,0.30350078,3948.9,3948.8,48.14016812]
[1734332257404,2.53216,3949.2,3948.8,48.14016812]
[1734332259081,2.16026496,3949.5,3948.8,48.14016812]
[1734332259324,0.55,3948.9,3948.8,48.14016812]
[1734332260049,3.08235,3948.9,3948.8,48.14016812]
[1734332260209,0.55,3948.9,3948.8,48.14016812]
[1734332261210,0.50265781,3949.0,3948.8,48.14016812]
[1734332261726,0.30348478,3948.9,3948.8,48.14016812]
[1734332262060,0.50265781,3949.0,3948.8,48.14016812]
[1734332264412,4.81478014,3949.8,3948.8,48.14016812]
[1734332264413,0.55,3949.6,3948.8,48.14016812]
[1734332264653,0.253173,3949.8,3948.8,50.67257812]
[1734332264814,0.53940818,3949.7,3948.8,50.67257812]
[1734332265342,2.53173,3949.9,3948.8,50.67257812]
[1734332265754,0.55,3949.8,3948.8,50.67257812]
[1734332266657,1.06079425,3949.8,3948.8,50.67257812]
[1734332267373,1.06079425,3949.8,3948.8,48.14016812]
[1734332267536,2.53184,3949.7,3948.8,48.14016812]
[1734332267724,0.68005009,3949.6,3948.8,48.14016812]
[1734332269369,2.10839595,3949.8,3948.8,48.14016812]
[1734332269577,0.86854387,3949.7,3948.8,48.14016812]
[1734332269870,0.55,3949.8,3948.8,48.14016812]
[1734332270036,1.86530129,3949.7,3948.8,48.14016812]
[1734332270365,0.99673693,3949.7,3948.8,50.67256812]
[1734332270563,1.5976017,3949.8,3948.8,48.14016812]
[1734332270768,1.56160714,3950.0,3949.0,2.53228]
[1734332270769,1.0476017,3950.0,3949.0,2.53228]
[1734332270968,1.0476017,3950.1,3949.2,2.5321]
[1734332271170,0.86883302,3950.0,3949.2,2.5321]
[1734332271473,2.04433863,3950.2,3949.2,2.5321]
[1734332271680,2.04433863,3950.2,3948.8,49.13690505]
[1734332271681,2.17183656,3950.1,3949.6,2.53185]
[1734332271827,1.0476017,3950.6,3949.5,3.30575]
[1734332272027,3.07887978,3951.0,3949.8,0.7641]
[1734332272028,1.0476017,3950.7,3949.8,0.7641]
[1734332272227,1.0476017,3950.9,3949.8,0.7641]
[1734332272457,0.99673693,3951.0,3950.0,2.53163]
[1734332272667,0.99673693,3951.0,3950.1,2.53155]
[1734332273233,0.50691851,3950.9,3949.9,2.53169]
[1734332275174,0.50691851,3950.9,3950.0,2.53163]
[1734332275477,0.50691851,3950.9,3949.8,0.7641]
[1734332275683,0.55,3951.3,3949.8,0.7641]
[1734332275881,0.55,3951.3,3950.1,2.53156]
[1734332276350,0.55,3951.1,3949.8,0.7641]
[1734332276752,2.15819644,3951.4,3950.2,2.53151]
[1734332276753,0.55,3951.3,3950.2,2.53151]
[1734332277092,0.55,3951.1,3950.5,2.53129]
[1734332277687,1.03876576,3951.2,3950.5,2.53129]
[1734332279568,0.51487112,3951.2,3950.5,2.53129]
[1734332279774,0.51487112,3951.2,3950.6,2.53125]
[1734332280358,0.51487112,3951.2,3950.1,0.8264]
[1734332281096,3.0,3951.7,3950.1,0.8264]
[1734332281097,3.55,3951.7,3950.1,0.8264]
[1734332281598,0.55,3952.0,3950.9,2.53105]
[1734332281900,2.53005,3952.5,3951.4,2.53068]
[1734332282267,0.49351234,3952.0,3951.4,2.53068]
[1734332282471,0.49351234,3952.0,3951.5,2.53067]
[1734332282698,2.52992,3952.7,3950.5,2.53132]
[1734332282699,1.0476017,3952.9,3951.1,2.15819644]
[1734332282908,2.52966,3953.1,3951.1,2.15819644]
[1734332283227,0.51324473,3952.8,3952.0,3.32855]
[1734332283367,0.51324473,3952.8,3952.0,0.7982]
[1734332283568,3.540769,3953.7,3952.4,2.5301]
[1734332283813,1.0476017,3954.1,3952.1,2.53028]
[1734332283814,0.56989654,3953.6,3952.1,2.53028]
[1734332284018,0.56989654,3953.6,3951.9,2.15819644]
[1734332284019,2.52917,3953.9,3952.7,2.52989]
[1734332284212,2.52925,3953.8,3952.4,2.53006]
[1734332284479,2.52934,3953.6,3952.3,0.7829]
[1734332284714,0.30280176,3953.5,3952.3,0.7829]
[1734332284892,2.83221176,3953.5,3952.3,0.7829]
[1734332285477,0.30280176,3953.5,3952.3,3.31304]
[1734332285680,0.30280176,3953.5,3952.3,0.7829]
[1734332285895,2.5293,3953.7,3952.4,2.53008]
[1734332286094,0.55,3953.6,3952.4,2.53008]
[1734332286313,3.07934,3953.6,3952.4,2.53008]
[1734332288364,2.52948,3953.4,3952.3,0.7829]
[1734332290770,0.55,3953.5,3952.3,3.31305]
[1734332291120,0.55,3953.7,3952.3,0.7829]
[1734332292119,2.52993,3952.7,3951.6,0.7616]
[1734332292330,0.252993,3952.6,3951.6,0.7616]
[1734332292472,2.52993,3952.7,3951.6,0.7616]
[1734332292879,2.52964,3953.2,3951.6,0.7616]
[1734332292880,2.52989,3952.8,3951.6,0.7616]
[1734332293118,2.52961,3953.2,3951.6,3.29221]
[1734332293357,2.52979,3952.9,3951.7,2.53053]
[1734332293513,2.52946,3953.4,3951.8,0.8138]
[1734332293713,0.55,3953.3,3952.0,0.8138]
[1734332293913,2.52966,3953.1,3952.0,0.8138]
[1734332294743,2.52979,3952.9,3952.0,0.8138]
[1734332294953,2.52993,3952.7,3952.0,0.8138]
[1734332295160,2.52959,3953.2,3952.0,0.8138]
[1734332295161,0.55,3953.1,3952.0,0.8138]
[1734332295313,2.5301,3952.5,3952.0,0.8138]
[1734332295838,0.55,3953.1,3952.0,0.8138]
[1734332295839,2.52988,3952.8,3952.0,0.8138]
[1734332296349,0.344467,3953.0,3952.0,0.8138]
[1734332296555,2.53009,3952.5,3952.0,0.8138]
[1734332296853,2.874197,3953.0,3951.3,0.7976]
[1734332296854,0.55,3952.7,3951.3,0.7976]
[1734332297093,0.55,3952.5,3951.3,0.7976]
[1734332297382,2.53033,3952.1,3951.3,0.7976]
[1734332298786,2.53009,3952.5,3951.3,0.7976]
[1734332298787,2.53036,3952.0,3951.3,0.7976]
[1734332299280,2.53051,3951.8,3951.3,0.7976]
[1734332299643,2.52985,3952.8,3951.3,0.7976]
[1734332299644,0.55,3952.2,3951.3,0.7976]
[1734332299843,2.53056,3951.7,3951.3,0.7976]
[1734332300041,2.5303,3952.1,3951.3,0.7976]
[1734332300242,2.53045,3951.9,3951.3,0.7976]
[1734332300543,2.783555,3951.8,3951.3,0.7976]
[1734332300775,2.53051,3951.8,3951.3,0.7976]
[1734332300993,3.08022,3952.3,3951.3,0.7976]
[1734332300994,0.55,3952.1,3951.3,0.7976]
[1734332301192,2.53054,3951.8,3951.3,0.7976]
[1734332303787,0.39337816,3952.7,3951.3,0.7976]
[1734332303788,0.55,3952.6,3951.3,0.7976]
[1734332303993,2.53031,3952.1,3951.3,0.7976]
[1734332305594,3.032235,3952.3,3951.3,0.7976]
[1734332305901,2.5303,3952.1,3951.3,0.7976]
[1734332306698,3.032235,3952.3,3951.3,0.7976]
[1734332308265,0.502055,3952.3,3951.3,0.7976]
[1734332308472,2.53024,3952.2,3951.3,0.7976]
[1734332309207,2.53009,3952.5,3951.4,0.77]
[1734332310265,2.53015,3952.4,3951.4,0.77]
[1734332310466,0.253015,3952.3,3951.4,0.77]
[1734332312087,0.50698795,3952.7,3951.4,0.77]
[1734332312296,2.53005,3952.5,3951.5,0.7802]
[1734332314171,0.50698795,3952.7,3951.5,0.7802]
[1734332314395,2.52999,3952.6,3951.5,0.7802]
[1734332315386,2.837989,3952.6,3951.5,0.7802]
[1734332315587,0.51169084,3952.0,3951.5,0.7802]
[1734332316211,0.51169084,3952.0,3951.6,0.7701]
[1734332316591,0.51169084,3952.0,3951.6,3.3007]
[1734332318526,0.51169084,3952.0,3951.6,0.7701]
[1734332318909,0.51169084,3952.0,3951.6,3.30072]
[1734332319110,0.344467,3953.0,3952.0,0.7831]
[1734332319111,0.55,3953.0,3952.0,0.7831]
[1734332319310,3.5771117,3953.4,3952.3,0.7831]
[1734332319495,3.59631288,3953.4,3952.3,0.7831]
[1734332319900,3.04666373,3953.4,3952.3,0.7831]
[1734332320109,2.5296,3953.2,3952.3,0.7831]
[1734332321031,2.52974,3953.0,3952.3,0.7831]
[1734332321684,2.5296,3953.2,3952.3,0.7831]
[1734332321899,0.40943554,3953.1,3952.3,0.7831]
[1734332322736,0.51715373,3953.4,3952.5,0.7987]
[1734332322887,2.52945,3953.5,3952.5,3.32874]
[1734332323728,1.0476017,3953.7,3952.5,3.32874]
[1734332323729,1.0476017,3953.7,3952.5,0.7987]
[1734332323943,3.07934,3953.6,3952.5,0.7987]
[1734332324685,0.51450636,3953.5,3952.5,0.7987]
[1734332324929,0.35938464,3953.4,3952.5,3.32868]
[1734332325235,0.51450636,3953.5,3952.5,3.32868]
[1734332327405,0.51450636,3953.5,3952.8,0.8307]
[1734332328507,1.0476017,3953.8,3953.0,2.52971]
[1734332328691,0.49534288,3953.8,3953.1,3.28253363]
[1734332329341,0.64963734,3953.8,3953.1,3.28253363]
[1734332329988,0.49534288,3953.8,3953.2,2.52958]
[1734332330191,1.0476017,3954.3,3953.2,2.52958]
[1734332330491,1.0476017,3954.5,3953.2,2.52958]
[1734332331314,2.52884,3954.4,3953.2,2.52958]
[1734332331523,0.90764417,3954.3,3953.2,2.52958]
[1734332331887,0.90764417,3954.3,3953.3,0.8098]
[1734332332134,3.07891,3954.3,3953.3,0.8098]
[1734332333317,0.51689397,3953.9,3953.3,0.8098]
[1734332333836,1.0476017,3954.6,3952.7,4.68806644]
[1734332333837,3.5763017,3954.6,3953.4,2.52945]
[1734332334045,1.41816966,3954.5,3953.5,0.8144]
[1734332334339,0.49944714,3954.4,3953.6,0.8143]
[1734332334505,0.49944714,3954.4,3953.6,3.34361]
[1734332334718,3.5761617,3954.9,3953.9,0.8143]
[1734332335047,0.5042535,3954.4,3954.0,0.8143]
[1734332335760,0.55,3954.9,3954.0,3.34336]
[1734332335917,2.52831,3955.3,3954.1,0.8143]
[1734332336122,0.90759117,3955.2,3954.2,0.8032]
[1734332336451,0.35759117,3955.2,3954.2,0.8032]
[1734332336758,0.85830534,3955.2,3954.2,3.33214]
[1734332337310,3.38662534,3955.2,3954.2,0.8032]
[1734332337550,0.33866253,3955.1,3954.2,0.8032]
[1734332337751,2.15819644,3954.7,3953.0,0.8144]
[1734332338051,0.55,3954.3,3953.0,0.8144]
[1734332338399,2.52896,3954.2,3953.0,0.8144]
[1734332338554,0.307896,3954.1,3953.0,0.8144]
[1734332338851,2.52902,3954.1,3953.1,0.7978]
[1734332341560,3.58429329,3954.3,3953.2,2.52959]
[1734332341713,0.50540329,3954.3,3952.9,3.0]
[1734332342058,0.50540329,3954.3,3953.3,0.7793]
[1734332342360,0.30342533,3954.2,3953.3,0.7793]
[1734332343009,3.03429329,3954.3,3953.3,0.7793]
[1734332344554,0.50540329,3954.3,3953.3,0.7793]
[1734332344707,0.55,3954.2,3953.3,0.7793]
[1734332344908,2.52916,3953.9,3953.3,0.7793]
[1734332348659,2.52902,3954.1,3953.3,0.7793]
[1734332348862,0.35844233,3954.0,3953.3,0.7793]
[1734332352465,0.50540329,3954.3,3953.4,2.5294]
[1734332352778,0.50540329,3954.3,3953.5,0.7671]
[1734332352973,0.50540329,3954.3,3953.5,2.52938]
[1734332353268,0.50540329,3954.3,3953.6,0.7539]
[1734332353529,0.50540329,3954.3,3953.0,2.52967]
[1734332353530,2.86705253,3955.1,3954.0,0.7539]
[1734332353733,2.81516525,3955.0,3954.0,0.7539]
[1734332354032,2.52846,3955.0,3954.0,0.7539]
[1734332358285,0.55,3955.1,3954.0,2.52906]
[1734332358492,0.55,3955.1,3954.1,0.8188]
[1734332358892,3.07838,3955.1,3954.1,0.8188]
[1734332359305,0.35792572,3955.0,3954.1,0.8188]
[1734332360500,2.52793,3955.8,3954.5,0.8187]
[1734332360703,2.52793,3955.8,3954.7,0.8187]
[1734332360704,2.52797,3955.8,3954.7,0.8187]
[1734332360976,0.49967647,3955.6,3954.7,0.8187]
[1734332361938,2.52812,3955.5,3954.7,0.8187]
[1734332362738,0.49967647,3955.6,3954.7,0.8187]
[1734332362739,2.52819,3955.4,3954.7,0.8187]
[1734332365658,0.49967647,3955.6,3954.7,0.8187]
[1734332365853,3.02773647,3955.6,3954.7,0.8187]
[1734332366063,0.55434901,3955.5,3954.7,0.8187]
[1734332366362,0.49967647,3955.6,3954.8,0.8187]
[1734332366533,0.49967647,3955.6,3954.9,0.8187]
[1734332368064,3.5752017,3956.4,3955.1,2.52832]
[1734332368262,0.86749971,3956.3,3955.2,0.7522]
[1734332368513,2.52765,3956.3,3955.2,0.7522]